bitfinex-derivatives/quotes_ETHF0:USTF0_20250607
["timestamp","ask_amount","ask_price","bid_price","bid_amount"]
[1749293428248,0.7008,2489.9,2489.7,0.8088641]
[1749293428444,1.50361,2489.9,2489.7,0.8088641]
[1749293428860,0.80282,2489.8,2489.7,0.0060241]
[1749293429065,0.7008,2489.9,2489.7,0.8088841]
[1749293429265,0.80282,2489.8,2489.7,0.8088841]
[1749293429766,1.50361,2489.9,2489.7,0.8088841]
[1749293429962,0.80282,2489.8,2489.7,0.0060241]
[1749293430163,1.50362,2489.9,2489.7,0.8088641]
[1749293431060,0.80282,2489.8,2489.7,0.0060241]
[1749293431363,0.80305,2489.2,2489.0,0.80308]
[1749293431566,0.6738,2489.1,2488.9,0.80309]
[1749293431766,1.47686,2489.1,2488.9,0.80309]
[1749293431969,0.6738,2489.1,2489.0,0.80308]
[1749293432163,1.47687,2489.1,2488.9,0.80309]
[1749293432364,0.6738,2489.1,2489.0,0.80308]
[1749293433471,3.2078,2489.8,2489.6,0.80288]
[1749293433664,0.655,2489.7,2489.6,0.80288]
[1749293434162,0.655,2489.7,2489.4,3.2078]
[1749293434163,0.6752,2490.0,2489.9,0.80279]
[1749293434564,1.47796,2490.0,2489.8,0.8028]
[1749293434960,0.6752,2490.0,2489.6,4.657]
[1749293435171,1.47799,2490.0,2489.8,0.80281]
[1749293435372,0.655,2489.9,2489.8,0.80281]
[1749293435565,0.0060241,2490.1,2489.7,3.2078]
[1749293435566,0.0060241,2490.1,2490.0,0.80276]
[1749293438070,0.0060241,2490.1,2490.0,4.01056]
[1749293438365,0.0060241,2490.1,2490.0,5.30046]
[1749293450573,0.0060241,2490.1,2490.0,5.36937172]
[1749293452671,0.0060241,2490.1,2490.0,5.30046]
[1749293453573,0.0060241,2490.1,2490.0,5.36937172]
[1749293461878,1.48208,2490.6,2490.5,0.8026]
[1749293461879,0.6795,2490.6,2490.5,0.8026]
[1749293462077,0.6795,2490.6,2490.5,5.4816]
[1749293465873,0.6795,2490.6,2490.5,5.55051172]
[1749293467285,0.0060241,2490.8,2490.7,0.80253]
[1749293467783,0.0060241,2490.8,2490.7,4.01033]
[1749293470382,5.3544,2491.5,2491.4,0.80231]
[1749293470587,5.3544,2491.5,2491.0,2.00608]
[1749293470588,0.6501,2491.4,2491.3,0.80233]
[1749293470785,1.3334,2491.4,2491.3,0.80233]
[1749293481091,1.3334,2491.4,2491.3,0.87124172]
[1749293485191,1.3334,2491.4,2491.3,5.54924172]
[1749293491993,3.2078,2492.4,2491.3,9.74691172]
[1749293492201,0.683,2491.9,2491.8,0.80218]
[1749293492493,0.683,2491.9,2491.8,5.69218]
[1749293492695,0.6723,2492.1,2492.0,0.80212]
[1749293492895,0.6723,2492.1,2492.0,4.00992]
[1749293493100,0.683,2492.2,2492.1,0.80208]
[1749293493598,0.0060241,2492.3,2492.2,0.80205]
[1749293497597,0.0060241,2492.3,2492.1,1.2969]
[1749293497598,0.0060241,2492.3,2492.0,3.27671172]
[1749293497800,0.0060241,2492.3,2492.2,0.80205]
[1749293498100,0.0060241,2492.3,2492.1,0.80206]
[1749293498291,0.0060241,2492.3,2492.2,0.80205]
[1749293498493,0.0060241,2492.3,2492.1,0.80206]
[1749293498691,0.0060241,2492.3,2492.2,0.80205]
[1749293500806,0.0060241,2492.3,2492.0,3.2078]
[1749293501000,8.1018241,2492.3,2491.8,0.0060241]
[1749293501307,1.2727,2492.2,2491.8,0.0060241]
[1749293501504,1.503,2492.1,2491.9,0.80214]
[1749293501704,1.2727,2492.0,2491.8,0.8081841]
[1749293501908,1.2727,2492.0,2491.9,0.80215]
[1749293505604,1.2727,2492.0,2491.8,0.8081841]
[1749293506906,3.2138241,2492.3,2491.8,0.0060241]
[1749293507107,0.80188,2492.8,2492.1,2.00522]
[1749293507411,0.6966,2493.0,2492.6,4.00971]
[1749293507603,2.12204,2492.9,2492.6,4.00971]
[1749293507800,0.80187,2492.8,2492.6,3.2078]
[1749293508107,1.3202,2492.8,2492.6,4.00972]
[1749293508301,2.12206,2492.8,2492.6,4.00972]
[1749293508701,1.3202,2492.8,2492.7,0.80189]
[1749293511608,0.0060241,2492.9,2492.8,0.80186]
[1749293519029,0.8078541,2492.9,2492.8,0.80186]
[1749293519329,0.0060241,2492.9,2492.8,0.80186]
[1749293524726,0.0060241,2492.9,2492.8,1.45356]
[1749293525226,0.0060241,2492.9,2492.8,6.27556]
[1749293525427,3.2078,2494.0,2493.6,0.80158]
[1749293525628,1.07391672,2493.9,2493.6,0.80158]
[1749293525833,2.7052,2494.1,2493.4,2.00417]
[1749293526036,2.7052,2494.1,2493.5,1.3527]
[1749293526037,3.50666,2494.1,2493.5,1.3527]
[1749293526327,0.80148,2494.0,2493.6,3.2138241]
[1749293526628,0.80748374,2494.0,2493.8,0.80154]
[1749293526829,0.80748374,2494.0,2493.8,0.80152]
[1749293526830,0.80747374,2494.0,2493.8,0.80152]
[1749293527132,0.80747374,2494.0,2493.9,0.8015]
[1749293527533,0.00600374,2494.0,2493.9,0.8015]
[1749293531735,0.80747374,2494.0,2493.9,0.8015]
[1749293531937,0.80750374,2494.0,2493.8,0.80154]
[1749293532134,0.80750374,2494.0,2493.9,0.8015]
[1749293536144,0.00600374,2494.0,2493.9,0.8015]
[1749293537033,0.00600374,2494.0,2493.9,2.0776]
[1749293538034,0.00600374,2494.0,2493.9,5.2854]
[1749293539842,0.07491546,2494.0,2493.9,5.2854]
[1749293541035,3.2078,2495.0,2494.9,0.80118]
[1749293541434,0.80113,2495.1,2494.9,0.80118]
[1749293541640,0.80113,2495.1,2494.7,2.7133]
[1749293541842,0.6403,2495.2,2494.8,1.3824]
[1749293542040,0.80113,2495.1,2494.8,1.3884119]
[1749293542242,0.6403,2495.2,2495.1,0.80112]
[1749293542435,0.6323,2495.3,2495.2,0.80109]
[1749293543335,1.43335,2495.3,2495.2,0.80109]
[1749293543536,0.6323,2495.3,2494.8,0.0060119]
[1749293543739,0.80113,2495.1,2494.8,0.0060119]
[1749293544042,0.80113,2495.1,2494.8,4.8250119]
[1749293544442,3.8401,2495.3,2494.8,0.0060119]
[1749293544642,0.80118,2494.9,2494.8,0.0060119]
[1749293545244,3.43938,2494.9,2494.8,0.0060119]
[1749293547945,2.14728,2494.9,2494.8,0.0060119]
[1749293549145,2.14728,2494.9,2494.8,0.8072319]
[1749293549343,2.14728,2494.9,2494.8,0.0060119]
[1749293549645,2.14728,2494.9,2494.8,0.8072319]
[1749293549943,1.3461,2494.9,2494.8,0.8072319]
[1749293550246,1.3079,2495.3,2494.9,0.80116]
[1749293550447,0.80115,2495.0,2494.9,0.80116]
[1749293550645,0.80118,2494.9,2494.8,0.0060119]
[1749293555044,0.87009172,2494.9,2494.8,0.0060119]
[1749293556942,4.07789172,2494.9,2494.8,0.0060119]
[1749293557248,0.80137,2494.4,2494.3,5.56936]
[1749293557445,0.80133,2494.5,2494.4,0.80132]
[1749293558347,0.80129,2494.6,2494.5,0.80128]
[1749293560850,0.67627126,2494.7,2494.3,9.3218]
[1749293561152,0.80133,2494.5,2494.4,0.80131]
[1749293563342,0.8013,2494.6,2494.5,0.80129]
[1749293563942,0.80133,2494.5,2494.4,0.80132]
[1749293565554,0.00597126,2494.7,2494.6,0.80128]
[1749293565962,0.80722126,2494.7,2494.6,0.80128]
[1749293567457,0.80128,2494.6,2494.5,1.46859]
[1749293567861,0.80128,2494.6,2494.5,0.80131]
[1749293568060,0.80131,2494.5,2494.4,4.767]
[1749293568254,0.80134,2494.4,2494.3,0.80136]
[1749293568449,0.80134,2494.4,2494.3,4.767]
[1749293569159,0.80134,2494.4,2494.3,5.56838]
[1749293569760,1.47564,2494.5,2494.4,0.80134]
[1749293573965,0.6743,2494.5,2494.4,0.80134]
[1749293575265,1.47561,2494.5,2494.4,0.80134]
[1749293575472,0.6743,2494.5,2494.4,0.80134]
[1749293576971,0.06891172,2494.6,2494.5,0.80131]
[1749293577774,0.06891172,2494.6,2494.5,2.14461]
[1749293578471,0.87019172,2494.6,2494.5,2.14461]
[1749293579973,0.06891172,2494.6,2494.5,2.14461]
[1749293581968,0.87019172,2494.6,2494.5,0.80131]
[1749293582173,0.80133,2494.5,2494.4,0.80132]
[1749293582368,0.80134,2494.4,2494.3,8.77616]
[1749293582878,1.44253,2494.5,2494.4,0.80134]
[1749293583979,0.80134,2494.4,2494.3,8.77615]
[1749293584479,1.44253,2494.5,2494.4,0.80134]
[1749293587579,0.87025172,2494.4,2494.3,8.77618]
[1749293590282,0.87025172,2494.4,2494.3,4.00918]
[1749293592184,0.87025172,2494.4,2494.3,3.2078]
[1749293593381,0.87025172,2494.4,2494.3,4.00918]
[1749293593883,0.87025172,2494.4,2494.3,0.80138]
[1749293594080,0.80138,2494.3,2494.2,0.0060119]
[1749293594680,0.06891172,2494.4,2494.3,0.80138]
[1749293594880,1.14764598,2494.4,2494.3,4.00918]
[1749293595084,0.00597126,2494.7,2494.6,0.80128]
[1749293595282,0.00597126,2494.7,2494.6,8.73508]
[1749293596577,3.2078,2495.4,2495.2,0.80108]
[1749293596788,1.87689642,2495.3,2495.1,0.80111]
[1749293596986,0.80107,2495.3,2495.1,0.80111]
[1749293597694,3.2078,2495.4,2495.0,2.0517]
[1749293597886,0.80111,2495.2,2495.0,2.85284]
[1749293599085,0.80112,2495.1,2495.0,2.85284]
[1749293599293,0.80111,2495.2,2495.0,2.85284]
[1749293599587,0.6582,2495.1,2495.0,2.85284]
[1749293600889,0.6582,2495.1,2495.0,2.0517]
[1749293601088,0.80115,2495.0,2494.9,3.2078]
[1749293601283,0.80118,2494.9,2494.8,4.725]
[1749293602088,0.80118,2494.9,2494.8,5.52622]
[1749293602493,0.6582,2495.1,2495.0,0.80115]
[1749293603189,0.6582,2495.1,2495.0,2.17775]
[1749293605180,0.80107,2495.3,2495.0,1.3766]
[1749293605383,1.46487,2495.3,2495.1,0.8011]
[1749293605591,0.80109,2495.2,2495.1,0.8011]
[1749293605790,1.46488,2495.3,2495.1,0.8011]
[1749293605988,0.6638,2495.3,2495.1,0.8011]
[1749293606188,1.46487,2495.3,2495.2,0.80109]
[1749293606491,1.46487,2495.3,2495.1,0.80109]
[1749293606990,0.80109,2495.2,2495.0,2.17773]
[1749293607383,1.46487,2495.3,2495.1,0.80112]
[1749293607693,0.80109,2495.2,2495.0,2.17774]
[1749293608087,1.46488,2495.3,2495.1,0.80112]
[1749293608289,1.46488,2495.3,2495.1,0.80111]
[1749293608290,1.46487,2495.3,2495.1,0.80111]
[1749293608787,0.6638,2495.3,2495.0,1.3766]
[1749293608992,1.46487,2495.3,2495.1,0.80111]
[1749293609289,0.06891172,2495.4,2495.0,1.3766]
[1749293609493,0.06891172,2495.4,2495.3,0.80106]
[1749293609698,0.06891172,2495.4,2495.3,2.07416]
[1749293609895,0.06891172,2495.4,2495.3,2.73106]
[1749293613496,3.2078,2496.1,2495.6,2.00238]
[1749293613796,1.3511,2496.2,2495.8,3.2078]
[1749293613993,1.3511,2496.2,2496.1,0.8008]
[1749293614595,0.657,2496.2,2496.1,0.8008]
[1749293614791,0.657,2496.2,2495.8,4.5528]
[1749293614792,0.657,2496.2,2495.9,1.345]
[1749293615100,0.657,2496.2,2496.1,0.8008]
[1749293615294,1.72173084,2496.2,2495.6,0.0060119]
[1749293615597,1.3127,2496.1,2495.6,0.0060119]
[1749293615793,0.657,2496.2,2495.6,1.3189119]
[1749293615992,0.657,2496.2,2495.8,4.00869]
[1749293616192,0.80086,2495.9,2495.8,7.9318]
[1749293616499,1.45778,2496.2,2496.0,0.80082]
[1749293616898,0.657,2496.2,2496.0,0.80082]
[1749293617098,1.45778,2496.2,2495.8,9.2447]
[1749293617298,1.45778,2496.2,2495.9,1.3129]
[1749293617597,1.45777,2496.2,2496.1,0.8008]
[1749293617797,1.45777,2496.2,2496.0,0.80081]
[1749293619492,1.45777,2496.2,2495.9,1.3129]
[1749293619697,1.45777,2496.2,2496.0,0.80081]
[1749293620495,1.45777,2496.2,2496.1,0.8008]
[1749293620693,0.657,2496.2,2496.1,0.8008]
[1749293622390,1.45777,2496.2,2496.1,0.8008]
[1749293622593,3.2078,2496.7,2496.1,3.2078]
[1749293622891,3.2078,2496.7,2496.5,0.80065]
[1749293622892,0.80063,2496.7,2496.5,0.80065]
[1749293623296,3.8503,2497.0,2496.4,3.2078]
[1749293623487,0.8006,2496.8,2496.6,0.80062]
[1749293623690,0.8006,2496.8,2496.7,0.80061]
[1749293623898,0.8006,2496.8,2496.6,0.80062]
[1749293624199,0.8006,2496.8,2496.5,0.673]
[1749293624395,0.8006,2496.8,2496.7,0.80061]
[1749293624595,3.8503,2497.0,2496.4,3.2078]
[1749293624796,0.80063,2496.7,2496.6,0.80064]
[1749293627703,0.80064,2496.6,2496.5,5.59465]
[1749293630094,0.86955172,2496.6,2496.5,4.794]
[1749293630296,0.80067,2496.5,2496.4,4.0085]
[1749293630605,0.80067,2496.5,2496.4,8.8025]
[1749293630798,1.45137,2496.5,2496.4,8.8025]
[1749293631102,1.45137,2496.5,2496.4,8.0018]
[1749293631603,1.45137,2496.5,2496.4,8.8025]
[1749293631805,1.45137,2496.5,2496.4,3.2078]
[1749293632002,2.09327,2496.5,2496.4,3.2078]
[1749293633002,2.09327,2496.5,2496.4,4.0085]
[1749293634005,2.09327,2496.5,2496.4,3.2078]
[1749293634301,2.09327,2496.5,2496.4,4.0085]
[1749293635305,2.09327,2496.5,2496.4,3.2078]
[1749293635501,1.2926,2496.5,2496.4,4.0085]
[1749293635702,2.09327,2496.5,2496.4,4.0085]
[1749293638405,0.8007,2496.4,2496.3,0.80072]
[1749293638996,0.8007,2496.4,2496.3,5.59372]
[1749293639198,2.09329,2496.5,2496.4,0.8007]
[1749293640104,2.09329,2496.5,2496.3,5.59372]
[1749293640304,2.09329,2496.5,2496.4,0.8007]
[1749293640606,0.8007,2496.4,2496.3,4.793]
[1749293640808,0.80074,2496.3,2496.2,5.59375]
[1749293641308,0.80073,2496.4,2496.3,0.80073]
[1749293641604,0.80073,2496.3,2496.2,5.59374]
[1749293642107,0.80072,2496.4,2496.3,0.80073]
[1749293642305,2.6614,2496.5,2496.3,0.80073]
[1749293642503,0.8007,2496.4,2496.3,0.80073]
[1749293643005,1.2926,2496.5,2496.4,0.8007]
[1749293643211,0.06891172,2496.6,2496.5,0.80067]
[1749293643401,0.06891172,2496.6,2496.5,1.46657]
[1749293643601,0.06891172,2496.6,2496.5,2.86857]
[1749293644807,0.86955172,2496.6,2496.5,0.80067]
[1749293645209,0.80064,2496.6,2496.5,0.80067]
[1749293645616,0.80064,2496.6,2496.4,4.65058]
[1749293646118,0.80062,2496.7,2496.4,3.8499]
[1749293646415,0.80064,2496.7,2496.5,0.80065]
[1749293646617,0.6733,2496.9,2496.5,0.80065]
[1749293646807,0.80063,2496.7,2496.6,5.59364]
[1749293647216,0.80063,2496.7,2496.6,4.793]
[1749293648406,0.80067,2496.6,2496.4,4.65058]
[1749293648608,0.6684,2496.6,2496.5,4.755]
[1749293648907,1.46904,2496.6,2496.5,4.755]
[1749293649112,1.46904,2496.6,2496.5,5.55567]
[1749293649813,0.6684,2496.6,2496.5,5.55567]
[1749293650012,0.80056,2496.9,2496.7,0.80058]
[1749293650207,3.2078,2497.3,2496.8,18.359]
[1749293650410,0.80034,2497.6,2497.0,5.20903]
[1749293650617,0.80045,2497.2,2497.1,4.7610119]
[1749293650809,0.80045,2497.2,2497.1,0.0060119]
[1749293651004,0.80045,2497.2,2497.1,4.7600119]
[1749293651209,0.80045,2497.2,2497.1,0.0060119]
[1749293651414,1.46843,2497.3,2497.1,5.5604719]
[1749293651917,0.80045,2497.2,2497.1,4.7600119]
[1749293652117,0.80045,2497.2,2497.1,0.0060119]
[1749293655716,2.19785,2497.2,2497.1,0.0060119]
[1749293657619,3.25785824,2497.2,2497.1,0.0060119]
[1749293658312,0.80045,2497.2,2497.1,0.0060119]
[1749293659419,1.92867907,2497.2,2497.1,0.0060119]
[1749293659619,2.26926172,2497.2,2497.1,0.0060119]
[1749293659819,3.32853312,2497.2,2497.1,0.0060119]
[1749293660122,2.26926172,2497.2,2497.1,0.0060119]
[1749293661821,3.3285413,2497.2,2497.1,0.0060119]
[1749293665832,3.3285413,2497.2,2496.3,20.32881]
[1749293665833,2.00121,2497.1,2496.4,5.4263]
[1749293666119,0.80067,2496.5,2496.4,5.4263]
[1749293666529,0.80067,2496.5,2496.4,4.754]
[1749293667319,0.8007,2496.4,2496.3,3.2078]
[1749293667930,0.80069,2496.5,2496.3,3.2078]
[1749293668117,0.80066,2496.6,2496.5,0.80067]
[1749293668321,0.80067,2496.5,2496.4,2.81878]
[1749293668626,0.80067,2496.5,2496.4,6.7721]
[1749293670424,0.80067,2496.5,2496.3,3.2078]
[1749293670628,1.4505,2496.4,2496.3,7.9618]
[1749293671019,0.80073,2496.3,2496.2,0.0060119]
[1749293671929,2.55479594,2496.3,2496.2,0.0060119]
[1749293672321,2.55479594,2496.3,2496.1,0.01744]
[1749293672326,0.80077,2496.2,2496.1,0.01744]
[1749293672525,5.06883594,2496.2,2496.1,0.01744]
[1749293673926,6.33603594,2496.2,2496.1,0.01744]
[1749293674931,11.33603594,2496.2,2496.1,0.01744]
[1749293675630,11.40494766,2496.2,2496.1,0.01744]
[1749293677433,6.40494766,2496.2,2496.1,0.01744]
[1749293677738,0.80083,2496.0,2495.9,0.0060119]
[1749293685743,2.17553,2496.0,2495.9,0.0060119]
[1749293686636,0.80083,2496.0,2495.9,0.0060119]
[1749293688055,0.6647,2496.1,2495.2,3.2078]
[1749293688351,0.80102,2495.4,2495.3,0.6722]
[1749293688551,0.80102,2495.4,2495.3,1.9545]
[1749293689242,0.6426,2495.6,2495.3,1.9545]
[1749293689243,0.80101,2495.5,2495.3,2.75554]
[1749293689450,3.8947,2495.8,2495.6,0.80095]
[1749293689451,0.80094,2495.7,2495.6,0.80095]
[1749293689648,0.80093,2495.7,2495.6,4.00875]
[1749293689846,0.80092,2495.8,2495.6,0.80095]
[1749293690151,0.6426,2496.1,2495.8,0.80088]
[1749293690344,0.6426,2496.1,2495.7,1.49361]
[1749293690345,0.80089,2495.9,2495.7,1.49361]
[1749293690651,0.80089,2495.9,2495.8,0.8009]
[1749293691441,0.8009,2495.8,2495.7,1.49361]
[1749293692049,0.8009,2495.8,2495.7,0.6927]
[1749293693553,0.8009,2495.8,2495.7,1.49363]
[1749293693851,0.8009,2495.8,2495.7,0.6927]
[1749293694053,0.8009,2495.8,2495.7,1.49363]
[1749293694354,0.8009,2495.8,2495.7,0.6927]
[1749293701057,0.8009,2495.8,2495.7,1.49363]
[1749293701458,0.8009,2495.8,2495.7,0.6927]
[1749293702157,0.8009,2495.8,2495.7,1.49363]
[1749293702352,0.8009,2495.8,2495.7,2.15443]
[1749293702753,0.8009,2495.8,2495.7,1.3535]
[1749293703357,1.86127949,2495.8,2495.7,1.3535]
[1749293703549,1.86127949,2495.8,2495.7,2.15443]
[1749293704061,1.86127949,2495.8,2495.7,1.3535]
[1749293704760,1.86127949,2495.8,2495.7,2.15443]
[1749293705557,1.86127949,2495.8,2495.7,3.50813]
[1749293705758,1.86127949,2495.8,2495.7,2.7072]
[1749293705962,1.86127949,2495.8,2495.7,3.50813]
[1749293706262,1.93019121,2495.8,2495.7,3.50813]
[1749293706762,1.93019121,2495.8,2495.7,2.7072]
[1749293707359,1.93019121,2495.8,2495.7,3.50813]
[1749293708066,1.93019121,2495.8,2495.7,2.7072]
[1749293708767,1.93019121,2495.8,2495.7,3.50813]
[1749293708957,1.12929121,2495.8,2495.7,3.50813]
[1749293709163,0.06891172,2495.8,2495.7,3.50813]
[1749293712168,0.80093,2495.7,2495.6,4.00876]
[1749293712467,0.86983172,2495.8,2495.6,7.9438]
[1749293712670,0.86983172,2495.8,2495.7,0.80093]
[1749293713263,0.06891172,2495.8,2495.7,0.80093]
[1749293713570,0.06891172,2495.8,2495.7,2.15963]
[1749293715562,0.86981172,2495.8,2495.7,5.53693]
[1749293716167,0.86981172,2495.8,2495.7,4.736]
[1749293716365,0.80093,2495.7,2495.6,4.00876]
[1749293716567,0.80093,2495.7,2495.6,8.74476]
[1749293718067,0.80093,2495.7,2495.6,4.736]
[1749293719368,0.80093,2495.7,2495.6,5.53696]
[1749293719969,0.6396,2495.8,2495.7,0.80093]
[1749293721370,1.4405,2495.8,2495.7,0.80093]
[1749293721872,1.43288,2495.9,2495.8,0.8009]
[1749293723572,0.80092,2495.8,2495.7,0.8009]
[1749293724171,0.80093,2495.7,2495.6,10.77685]
[1749293724370,0.86984172,2495.7,2495.6,10.77685]
[1749293724672,0.06891172,2495.7,2495.6,10.77685]
[1749293724866,0.86984172,2495.7,2495.6,10.77685]
[1749293725066,0.86984172,2495.7,2495.6,4.736]
[1749293725271,0.86984172,2495.7,2495.6,5.53696]
[1749293725875,0.06891172,2495.7,2495.6,5.53696]
[1749293727467,0.06891172,2495.7,2495.6,8.74476]
[1749293727769,0.06891172,2495.7,2495.6,10.13486]
[1749293731578,0.80069,2496.5,2495.6,14.3339]
[1749293731874,1.0585954,2496.4,2496.1,3.2078]
[1749293732079,0.80069,2496.5,2496.3,0.80071]
[1749293732378,1.85925946,2496.4,2496.3,0.80071]
[1749293733268,1.05855946,2496.4,2496.3,0.80071]
[1749293733473,0.8007,2496.5,2496.4,0.8007]
[1749293733671,1.85984558,2496.5,2496.4,0.8007]
[1749293737276,1.2978,2496.6,2496.5,0.80067]
[1749293739576,0.6371,2496.6,2496.5,0.80067]
[1749293739780,0.0060119,2496.7,2496.6,0.80064]
[1749293739982,0.0060119,2496.7,2496.6,5.53664]
[1749293740676,0.0060119,2496.7,2496.6,6.89964]
[1749293745286,0.0060119,2496.7,2496.6,0.80064]
[1749293745480,0.0060119,2496.7,2496.6,5.52664]
[1749293746778,0.8066219,2496.7,2496.6,4.726]
[1749293747081,0.0060119,2496.7,2496.6,6.87424]
[1749293747286,0.8066219,2496.7,2496.6,6.87424]
[1749293747483,0.8066219,2496.7,2496.6,5.52664]
[1749293747681,0.8066219,2496.7,2496.6,0.80064]
[1749293747885,0.8066219,2496.7,2496.6,5.52664]
[1749293748082,0.0060119,2496.7,2496.6,5.52664]
[1749293748285,0.0060119,2496.7,2496.6,2.14824]
[1749293748587,0.0060119,2496.7,2496.6,6.87424]
[1749293748978,0.0060119,2496.7,2496.6,2.14824]
[1749293749176,0.0060119,2496.7,2496.6,6.87424]
[1749293749689,0.07492362,2496.7,2496.6,6.87424]
[1749293751186,0.07492362,2496.7,2496.6,5.52664]
[1749293751590,0.07492362,2496.7,2496.6,0.80064]
[1749293751795,0.07492362,2496.7,2496.6,5.52664]
[1749293756488,0.87553362,2496.7,2496.6,5.52664]
[1749293757186,0.87553362,2496.7,2496.6,0.80064]
[1749293757391,0.87553362,2496.7,2496.6,5.52664]
[1749293760492,0.87553362,2496.7,2496.6,0.80064]
[1749293760694,0.80064,2496.6,2496.5,4.00845]
[1749293760896,1.47174,2496.6,2496.5,4.00845]
[1749293761192,0.6711,2496.6,2496.5,4.00845]
[1749293761590,1.47174,2496.6,2496.5,4.00845]
[1749293764297,0.80067,2496.5,2496.4,4.7320119]
[1749293764496,1.49867,2496.5,2496.4,5.5327219]
[1749293764997,0.698,2496.5,2496.4,5.5327219]
[1749293765697,0.6711,2496.6,2496.5,0.80067]
[1749293765997,0.06891172,2496.6,2496.5,0.80067]
[1749293766198,0.06891172,2496.6,2496.5,2.71227]
[1749293766406,0.06891172,2496.6,2496.5,3.38277]
[1749293767194,0.06891172,2496.6,2496.5,2.07517]
[1749293768399,0.06891172,2496.6,2496.5,2.73897]
[1749293776403,0.06891172,2496.6,2496.5,2.07517]
[1749293776599,0.06891172,2496.6,2496.5,0.80067]
[1749293776908,0.76391172,2496.6,2496.5,5.49767]
[1749293779006,0.76391172,2496.6,2496.5,0.80067]
[1749293779203,0.76391172,2496.6,2496.5,5.49767]
[1749293779405,0.76391172,2496.6,2496.5,0.80067]
[1749293780408,1.56456172,2496.6,2496.5,0.80067]
[1749293781011,0.80067,2496.5,2496.4,4.7030119]
[1749293782712,0.80067,2496.5,2496.4,5.5037219]
[1749293783706,0.80067,2496.5,2496.4,0.8067219]
[1749293785710,0.80067,2496.5,2496.4,0.0060119]
[1749293787109,2.07387,2496.5,2496.4,0.0060119]
[1749293787307,3.11604157,2496.5,2496.4,0.0060119]
[1749293790016,3.11478741,2496.5,2496.4,0.0060119]
[1749293792010,2.07387,2496.5,2496.4,0.0060119]
[1749293794912,3.11400647,2496.5,2496.4,0.0060119]
[1749293795311,3.18291819,2496.5,2496.4,0.0060119]
[1749293795715,0.8008,2496.1,2496.0,3.2078]
[1749293795914,0.80083,2496.0,2495.9,4.698]
[1749293796113,0.8009,2495.8,2495.7,8.70671]
[1749293796313,0.6844,2495.9,2495.8,0.8009]
[1749293796526,1.48529,2495.9,2495.8,0.8009]
[1749293798330,2.00188,2496.3,2495.8,0.8009]
[1749293798525,2.00188,2496.3,2495.8,2.8489]
[1749293798526,0.80087,2495.9,2495.8,2.8489]
[1749293799533,0.8009,2495.8,2495.7,8.70671]
[1749293800034,0.80089,2495.9,2495.8,0.80089]
[1749293800329,0.8009,2495.8,2495.7,8.7067]
[1749293800829,0.8009,2495.9,2495.8,0.80089]
[1749293802226,0.8009,2495.8,2495.7,8.70672]
[1749293802429,0.8009,2495.8,2495.7,3.2078]
[1749293803731,0.8009,2495.8,2495.7,4.00873]
[1749293804633,0.8009,2495.8,2495.7,3.2078]
[1749293806936,0.8009,2495.8,2495.7,4.00873]
[1749293808337,0.8009,2495.8,2495.7,3.2078]
[1749293809338,0.8009,2495.8,2495.7,4.00873]
[1749293809837,0.8009,2495.8,2495.7,5.31053]
[1749293810537,0.86981172,2495.8,2495.7,5.31053]
[1749293812337,0.06891172,2495.8,2495.7,5.31053]
[1749293812935,0.86981172,2495.8,2495.7,5.31053]
[1749293813334,0.06891172,2495.8,2495.7,5.31053]
[1749293813635,0.86981172,2495.8,2495.7,5.31053]
[1749293814237,0.06891172,2495.8,2495.7,5.31053]
[1749293835651,0.06891172,2495.8,2495.7,2.10273]
[1749293835851,0.06891172,2495.8,2495.7,5.31053]
[1749293851575,0.06891172,2495.8,2495.7,4.00873]
[1749293854479,0.06891172,2495.8,2495.7,8.69173]
[1749293855775,1.47141172,2495.8,2495.7,8.69173]
[1749293858882,1.47141172,2495.8,2495.7,4.00873]
[1749293861879,2.27231172,2495.8,2495.7,4.00873]
[1749293862985,2.27231172,2495.8,2495.7,3.2078]
[1749293863283,2.27231172,2495.8,2495.7,4.00874]
[1749293863779,2.27231172,2495.8,2495.7,3.2078]
[1749293864385,2.27231172,2495.8,2495.7,4.00873]
[1749293864586,2.27231172,2495.8,2495.7,3.2078]
[1749293865382,0.80093,2495.7,2495.6,0.0060119]
[1749293865684,2.80883,2495.7,2495.6,0.0060119]
[1749293865884,7.80883,2495.7,2495.6,0.0060119]
[1749293866288,7.80883,2495.7,2495.6,0.8069719]
[1749293866786,2.0079,2495.7,2495.6,0.8069719]
[1749293866985,2.80883,2495.7,2495.6,0.8069719]
[1749293867190,2.0079,2495.7,2495.6,0.8069719]
[1749293867687,2.80883,2495.7,2495.6,0.0060119]
[1749293867986,2.80883,2495.7,2495.6,0.8069819]
[1749293868288,7.80883,2495.7,2495.6,0.0060119]
[1749293868487,2.80883,2495.7,2495.6,0.0060119]
[1749293870279,2.87774172,2495.7,2495.6,0.0060119]
[1749293873890,2.87774172,2495.7,2495.6,0.8069719]
[1749293874188,2.87774172,2495.7,2495.6,0.0060119]
[1749293876289,2.87774172,2495.7,2495.6,0.8069719]
[1749293876587,1.51154172,2495.7,2495.6,0.0060119]
[1749293876788,0.71061172,2495.7,2495.6,0.8069719]
[1749293877087,0.06891172,2495.7,2495.6,0.8069719]
[1749293877685,0.86984172,2495.7,2495.6,0.8069719]
[1749293878889,0.06891172,2495.7,2495.6,0.8069719]
[1749293879991,0.86984172,2495.7,2495.6,0.8069719]
[1749293880192,0.06891172,2495.7,2495.6,0.8069719]
[1749293881097,0.06891172,2495.7,2495.6,2.1204719]
[1749293881597,0.86984172,2495.7,2495.6,2.1204719]
[1749293882894,0.06891172,2495.7,2495.6,2.1204719]
[1749293883698,0.86984172,2495.7,2495.6,2.1204719]
[1749293884800,0.86984172,2495.7,2495.6,0.0060119]
[1749293885694,0.86984172,2495.7,2495.6,0.8069719]